Cogmind - Beta 13 @@@ ROGUE MODE // 2024.05.20 @ 22:13:48 Player: MLGOON Result: Destroyed by B-75 Beast with Magnetic Acceleration Cannon Performance ------------- Evolutions (2) 1000 Regions Visited (5) 1000 Robots Destroyed (52) 260 Value Destroyed (1620) 1620 Prototype IDs (2) 40 Alien Tech Used (0) 0 Bonus (200) 200 TOTAL SCORE: 4120 Bonus ------- Entered Garrisons 200 Cogmind --------- Core Integrity 0/550 Matter 67/300 Energy 100/100 System Corruption 0% Temperature Cool (12) Movement Core (50) Location -8/Garrison Parts ------- > --- POWER (2) -------- (None) > --- PROPULSION (3) --- (None) > --- UTILITY (3) ------ Advanced Visual Processing Unit > --- WEAPON (3) ------- (None) > --- INVENTORY (5) ---- (None) Peak State ------------ > --- POWER ------------ Improved Ion Engine Cooled Ion Engine > --- PROPULSION ------- Improved Treads Improved Treads Improved Treads > --- UTILITY ---------- Advanced Visual Processing Unit Targeting Computer Improved Targeting Computer > --- WEAPON ----------- Heavy Assault Rifle Improved Assault Rifle Gauss Rifle > --- INVENTORY -------- Improved Ion Engine Light Nuclear Core Light Treads Improved Treads Mini Grenade Launcher [Rating: 27] Favorites ----------- Power Improved Ion Engine Engine Improved Ion Engine Power Core Light Nuclear Core Propulsion Light Treads Treads Light Treads Leg Aluminum Leg Flight Unit VTOL Module Utility Small Storage Unit Device ECM Suite Storage Small Storage Unit Processor Targeting Computer Weapon Improved Assault Rifle Ballistic Gun Improved Assault Rifle Launcher Grenade Launcher Build | -11 -10 -9 -9 -8 -8 ------- Run | Yrd Mat Mat Sto Mat Gar Slots Evolved 4 | . . 2 . 2 . Power 1 | . . . . 1 . Propulsion 1 | . . . . 1 . Utility 1 | . . 1 . . . Weapon 1 | . . 1 . . . Parts Attached 65 | 6 10 5 17 21 6 Power 11 | 1 1 1 2 4 2 Engine 10 | 1 1 1 2 4 1 Core 1 | . . . . . 1 Reactor . | . . . . . . Propulsion 23 | 2 2 . 6 11 2 Treads 16 | 2 . . 6 6 2 Leg 2 | . 2 . . . . Wheel . | . . . . . . Hover . | . . . . . . Flight 5 | . . . . 5 . Utility 8 | 1 2 1 1 3 . Device 2 | . 1 1 . . . Storage 1 | 1 . . . . . Processor 5 | . 1 . 1 3 . Hackware . | . . . . . . Protection . | . . . . . . Artifact . | . . . . . . Weapon 23 | 2 5 3 8 3 2 Energy Gun . | . . . . . . Energy Cannon . | . . . . . . Ballistic Gun 19 | 2 3 3 7 3 1 Ballistic Cannon . | . . . . . . Launcher 4 | . 2 . 1 . 1 Special Weapon . | . . . . . . Impact Weapon . | . . . . . . Slashing Weapon . | . . . . . . Piercing Weapon . | . . . . . . Special Melee Weapon . | . . . . . . Unidentified Prototypes 2 | . . . 1 1 . Parts Lost 21 | . 3 . . 3 15 Power 4 | . . . . . 4 Propulsion 10 | . 2 . . 3 5 Utility 2 | . . . . . 2 Weapon 5 | . 1 . . . 4 Highest Loss Streak 5 | . 3 . . 2 5 To Critical Strikes . | . . . . . . Average Slot Usage (%) 94 | . 99 99 99 93 72 Engine 12 | . 14 11 10 14 9 Treads 18 | . 26 . 20 15 23 Leg 3 | . 1 22 1 . . Flight 2 | . . . . 10 . Device 6 | . 3 10 11 2 . Storage 8 | . 14 11 11 1 . Processor 14 | . 9 11 11 21 19 Ballistic Gun 27 | . 21 33 32 27 15 Launcher 1 | . 6 . . . 3 Naked Turns . | . . . . . . Heaviest Build 25 | 13 16 16 23 25 25 Greatest Support 69 | 40 40 20 40 69 69 Greatest Overweight (x) 6 | . . . 6 2 . Average Overweight (x) . | . . . . . . Largest Inventory Capacity 8 | 8 8 8 8 8 5 Average Capacity 7 | 7 8 8 8 5 5 Most Carried 8 | 5 8 8 8 8 5 Average Carried 6 | 3 7 7 7 4 3 Final Capacity 8 | 8 8 8 8 5 5 Final Carried 8 | 4 8 7 8 5 . Class Distribution -------------------- 48% | Gunner 31% | Mutant 18% | Scavenger-Gunner Dominant Class ---------------- Mutant | -10/Materials Gunner | -9/Materials Gunner | -9/Storage Scavenger-Gunner | -8/Materials Mutant | -8/Garrison Resources | -11 -10 -9 -9 -8 -8 ----------- Run | Yrd Mat Mat Sto Mat Gar Matter Collected 1620 | 184 260 299 407 462 8 Remotely . | . . . . . . Salvage Created 1753 | . 227 299 530 578 119 Parts 112 | . 17 19 32 34 10 Haulers Intercepted . | . . . . . . Recyclers Shooed . | . . . . . . Parts Field Recycled . | . . . . . . Retrieved Matter . | . . . . . . Parts Self-Destructed . | . . . . . . Prevented . | . . . . . . Kills | -11 -10 -9 -9 -8 -8 ------- Run | Yrd Mat Mat Sto Mat Gar Combat Hostiles Destroyed 48 | . 7 8 11 13 9 Guns 42 | . 7 8 11 13 3 AOE 6 | . . . . . 6 Classes Destroyed 7 | . 4 1 . 2 . Worker 1 | . . . . 1 . Builder 1 | . 1 . . . . Watcher 2 | . 1 . 1 . . Swarmer 14 | . 3 3 . 3 5 Grunt 24 | . 4 4 7 6 3 Sentry 8 | . . 1 4 3 . Hunter 2 | . . . . 1 1 Best Kill Streak 5 | . 3 3 2 4 5 Combat Bots Only 5 | . 3 3 2 3 5 Max Kills in Single Turn 2 | . 1 1 1 1 2 Gunslinging . | . . . . . . Exploded 2 | . . . . . 2 Melee . | . . . . . . Uniques/NPCs Destroyed . | . . . . . . Combat | -11 -10 -9 -9 -8 -8 -------- Run | Yrd Mat Mat Sto Mat Gar Hostile Shots Fired 412 | . 79 41 39 45 208 Missed 127 | . 25 12 16 12 62 Damage Taken 3525 | . 611 321 326 476 1791 Core 735 | . 67 34 79 42 513 Absorbed by Shields . | . . . . . . Regen/Repaired (Parts) 32 | . . . 32 . . Core Remaining (%) 81 | 100 73 . 71 . . Volleys Fired 132 | . 26 25 30 29 22 Largest 3 | . 2 3 3 3 3 Hottest 76 | . 50 60 69 74 76 Shots Fired 348 | . 52 75 90 87 44 Gun 331 | . 49 75 90 87 30 Cannon . | . . . . . . Launcher 17 | . 3 . . . 14 Special . | . . . . . . Kinetic 331 | . 49 75 90 87 30 Thermal . | . . . . . . Explosive 17 | . 3 . . . 14 Electromagnetic . | . . . . . . Robot Hit Streak 42 | . 8 10 13 42 7 Robot Miss Streak 5 | . 4 5 4 1 4 Penetration Max . | . . . . . . Secondary Targets 4 | . 2 . 2 . . Max Gunslinging Chain 1 | . 1 . 1 . . Shots Hit Robots 232 | . 33 45 64 69 21 Core Hits 109 | . 21 17 22 26 23 Critical Kills 1 | . . . . . 1 Critical Parts Destroyed 2 | . . 1 1 . . Critical Strikes 3 | . . 1 1 . 1 Destroy 3 | . . 1 1 . 1 Melee Attacks . | . . . . . . Impact . | . . . . . . Slashing . | . . . . . . Piercing . | . . . . . . Sneak Attacks . | . . . . . . Combat Hostiles . | . . . . . . Follow-up Attacks . | . . . . . . Damage Inflicted 3882 | . 408 438 942 1144 950 Guns 3038 | . 331 430 942 1140 195 Cannons . | . . . . . . Explosions 819 | . 77 . . . 742 Melee . | . . . . . . Ramming 25 | . . 8 . 4 13 Kinetic 3038 | . 331 430 942 1140 195 Thermal . | . . . . . . Explosive 819 | . 77 . . . 742 Electromagnetic . | . . . . . . Impact . | . . . . . . Slashing . | . . . . . . Piercing . | . . . . . . Highest Corruption . | . . . . . . Average Corruption . | . . . . . . Corruption Purged . | . . . . . . Corruption Blocked . | . . . . . . Overload Shots . | . . . . . . Overflow Damage 121 | . . . . . 121 Projectiles . | . . . . . . Explosions 121 | . . . . . 121 Melee . | . . . . . . Knockbacks . | . . . . . . Impact . | . . . . . . Kinetic . | . . . . . . Secondary . | . . . . . . Self-Inflicted Damage 128 | . . . . . 128 Shots 5 | . . . . . 5 Rammed 7 | . . . . 1 6 Targets Rammed 9 | . . 1 . 2 6 Kicked 1 | . . 1 . . . Crushed 1 | . . . . 1 . Highest Temperature 86 | . 61 55 48 86 24 Average Temperature 20 | . 25 23 13 25 13 Received Heat Transfer 1065 | . 282 114 120 216 333 Siege Activations . | . . . . . . Robots Corrupted . | . . . . . . Combat Hostiles . | . . . . . . Parts Fried . | . . . . . . Impact Corruptions . | . . . . . . Robots Melted . | . . . . . . Combat Hostiles . | . . . . . . Parts Melted . | . . . . . . Heat Transferred . | . . . . . . Parts Sabotaged . | . . . . . . Parts Stolen . | . . . . . . Parts Stripped . | . . . . . . Power Chain Reactions . | . . . . . . Alert | -11 -10 -9 -9 -8 -8 ------- Run | Yrd Mat Mat Sto Mat Gar Peak Influence 381 | . 134 263 332 381 259 Initial 110 | . . 39 110 76 62 Average 139 | . 55 131 223 160 146 Maximum Alert Level 1 | . . 1 1 1 1 Low Security (%) 69 | 100 100 71 42 66 66 Level 1 30 | . . 28 57 33 33 Level 2 . | . . . . . . Level 3 . | . . . . . . Level 4 . | . . . . . . Level 5 . | . . . . . . High Security . | . . . . . . Max Security . | . . . . . . Squads Dispatched 7 | . 1 2 2 2 . Investigation 1 | . . . . 1 . Extermination . | . . . . . . Reinforcement 6 | . 1 2 2 1 . Assault . | . . . . . . Garrison . | . . . . . . Intercept . | . . . . . . Searches Triggered . | . . . . . . Construction Impeded . | . . . . . . Haulers Reinforced . | . . . . . . Active Scanning Responses . | . . . . . . Cargo Convoy Interrupts . | . . . . . . Stealth | -11 -10 -9 -9 -8 -8 --------- Run | Yrd Mat Mat Sto Mat Gar Distress Signals 3 | . . 1 2 . . Communications Jammed . | . . . . . . Distress Signals . | . . . . . . Times Spotted 81 | . 14 14 20 16 17 Peak Tracking Total 9 | . 4 4 3 3 9 Tactical Retreats 9 | . 3 3 3 . . Traps | -11 -10 -9 -9 -8 -8 ------- Run | Yrd Mat Mat Sto Mat Gar Traps Triggered 3 | . . . 2 1 . Indirectly . | . . . . . . Trap Hack Attempts . | . . . . . . Triggered . | . . . . . . Disarmed . | . . . . . . Reprogrammed . | . . . . . . Reused . | . . . . . . Traps Extracted . | . . . . . . Installed . | . . . . . . Triggered . | . . . . . . Machines | -11 -10 -9 -9 -8 -8 ---------- Run | Yrd Mat Mat Sto Mat Gar Machines Disabled . | . . . . . . Max in Single Turn . | . . . . . . Machines Repaired . | . . . . . . Machines Dismantled . | . . . . . . Machines Sabotaged . | . . . . . . Overloaded Fab Kills . | . . . . . . Hacking | -11 -10 -9 -9 -8 -8 --------- Run | Yrd Mat Mat Sto Mat Gar Machines Accessed 17 | . 2 2 8 5 . Terminals 12 | . 1 2 6 3 . Fabricators . | . . . . . . Repair Stations 2 | . . . 1 1 . Recycling Units 2 | . 1 . 1 . . Scanalyzers . | . . . . . . Garrison Access 1 | . . . . 1 . Total Hacks 34 | . 5 4 14 11 . Successful 20 | . 4 1 8 7 . Failed 14 | . 1 3 6 4 . Catastrophic 1 | . . 1 . . . Database Lockouts . | . . . . . . Manual 4 | . 1 1 1 1 . Terminals 21 | . 1 4 10 6 . Fabricators . | . . . . . . Repair Stations 6 | . . . 3 3 . Recycling Units 5 | . 4 . 1 . . Scanalyzers . | . . . . . . Garrison Access 2 | . . . . 2 . Terminal Hacks 9 | . . 1 4 4 . Record 1 | . . 1 . . . Open Door 3 | . . . 3 . . Alert Level 1 | . . . . 1 . Unreport Threat 1 | . . . . 1 . Zone Layout 3 | . . . 1 2 . Fabricator Hacks . | . . . . . . Repair Station Hacks 4 | . . . 3 1 . Scan Component 2 | . . . 1 1 . Repair 1 | . . . 1 . . Refit 1 | . . . 1 . . Recycling Unit Hacks 5 | . 4 . 1 . . Process 1 | . 1 . . . . Report Inventory 3 | . 2 . 1 . . Retrieve Matter 1 | . 1 . . . . Scanalyzer . | . . . . . . Garrison Access Hacks 2 | . . . . 2 . Unlock Access 1 | . . . . 1 . Coupler Status 1 | . . . . 1 . Unauthorized Hacks . | . . . . . . Terminals . | . . . . . . Fabricators . | . . . . . . Repair Stations . | . . . . . . Recycling Units . | . . . . . . Scanalyzers . | . . . . . . Garrison Access . | . . . . . . Data Cores Recovered . | . . . . . . Used . | . . . . . . Hacking Detections 10 | . 1 1 5 3 . Full Trace Events 1 | . . . . 1 . Feedback Events . | . . . . . . Feedback Blocked . | . . . . . . Robot Schematics Acquired . | . . . . . . Robots Built . | . . . . . . Authchips . | . . . . . . Time . | . . . . . . Total Robot Build Rating . | . . . . . . Part Schematics Acquired . | . . . . . . Parts Built . | . . . . . . Authchips . | . . . . . . Time . | . . . . . . Total Part Build Rating . | . . . . . . Parts Repaired 1 | . . . 1 . . Time 32 | . . . 32 . . Parts Recycled . | . . . . . . Recycled Matter 21 | . 21 . . . . Retrieved Matter 21 | . 21 . . . . Retrieved Components . | . . . . . . Parts Scanalyzed . | . . . . . . Part Schematics Acquired . | . . . . . . Parts Damaged . | . . . . . . Bothacking | -11 -10 -9 -9 -8 -8 ------------ Run | Yrd Mat Mat Sto Mat Gar Used RIF Installer . | . . . . . . Robots Hacked . | . . . . . . Non-combat . | . . . . . . Combat . | . . . . . . Robot Hacks Applied . | . . . . . . Relay Couplers Released . | . . . . . . Fabnet Peak Effective % . | . . . . . . Robots Rewired . | . . . . . . Allies Hacked . | . . . . . . Hacks Repelled . | . . . . . . Allies | -11 -10 -9 -9 -8 -8 -------- Run | Yrd Mat Mat Sto Mat Gar Total Allies . | . . . . . . Largest Group . | . . . . . . Highest-Rated Group . | . . . . . . Highest-Rated Ally . | . . . . . . Total Orders . | . . . . . . Ally Attacks . | . . . . . . Total Damage . | . . . . . . Kills . | . . . . . . Allies Corrupted . | . . . . . . Allies Melted . | . . . . . . Intel | -11 -10 -9 -9 -8 -8 ------- Run | Yrd Mat Mat Sto Mat Gar Robot Analysis Total . | . . . . . . Derelict Logs Recovered . | . . . . . . Drone Launches . | . . . . . . Drone Recoveries . | . . . . . . Exploration | -11 -10 -9 -9 -8 -8 ------------- Run | Yrd Mat Mat Sto Mat Gar Turns Passed 2739 | 274 514 269 830 590 262 Spaces Moved 1354 | 125 255 145 388 316 125 Core 15 | 3 . . 1 . 11 Treads 1014 | 122 238 . 373 167 114 Legs 176 | . 17 145 14 . . Wheels . | . . . . . . Hover . | . . . . . . Flight 149 | . . . . 149 . Fastest Speed 50 | 50 120 120 120 109 50 Average Speed 149 | 157 157 120 159 139 150 Slowest Speed 350 | 160 160 120 350 192 160 Overloaded Moves . | . . . . . . Propulsion Burnouts . | . . . . . . Robots Hopped . | . . . . . . Cave-ins Triggered . | . . . . . . Exploration Rate (%) 28 | 10 40 11 56 18 35 Regions Visited 5 Branch Regions 1 Pre-discovered Areas . | . . . . . . Known Exits Taken 1 | . . . . 1 . Unknown Exits Taken 4 | 1 1 1 1 . . Scrap Searched . | . . . . . . Spaces Dug . | . . . . . . Terrain Destroyed 79 | . 18 . . 1 60 Melee . | . . . . . . Projectile 1 | . . . . 1 . AOE 78 | . 18 . . . 60 Terrain Rammed . | . . . . . . Walls Destroyed . | . . . . . . Machines Disabled . | . . . . . . Actions | -11 -10 -9 -9 -8 -8 --------- Run | Yrd Mat Mat Sto Mat Gar Total 1816 | 200 323 196 540 398 159 Wait 179 | 64 18 12 72 13 . Move 1349 | 124 254 144 387 315 125 Hop . | . . . . . . Pick Up 41 | 6 10 4 15 6 . Fast Attach 13 | 4 2 . 3 4 . Attach 18 | 2 5 2 . 4 5 Detach 2 | . 1 . . 1 . Swap 34 | . 3 3 14 13 1 Drop 39 | . 4 5 19 11 . Fire 132 | . 26 25 30 29 22 Melee . | . . . . . . Ram 4 | . . . . . 4 Kick 1 | . . 1 . . . Crush 4 | . . . . 2 2 Escape Stasis . | . . . . . . Rewire . | . . . . . . Trap . | . . . . . . Miscellaneous . | . . . . . . Route ------- -11/Scrapyard -10/Materials -9/Materials -9/Storage -8/Materials -8/Garrison History --------- Turn | Location | Event 30 | -11/Scrapyard | Discovered new exit (range 16) 275 | -11/Scrapyard | Entered Materials 318 | -10/Materials | Build established: Mutant 597 | -10/Materials | Discovered new exit (range 11) 787 | -10/Materials | Lost 3 parts (2n1w) 789 | -10/Materials | Entered another Materials area 789 | -9/Materials | Evolved 2 slots: Utility x1, Weapon x1 826 | -9/Materials | Discovered new exit (range 9) 1058 | -9/Materials | Entered Storage 1090 | -9/Storage | Build established: Gunner 1781 | -9/Storage | Repaired Imp. Ion Engine 1878 | -9/Storage | Discovered new exit (range 7) 1888 | -9/Storage | Entered Materials 1888 | -8/Materials | Evolved 2 slots: Power x1, Propulsion x1 2426 | -8/Materials | Build established: Scavenger-Gunner 2476 | -8/Materials | Identified exit to Garrison 2478 | -8/Materials | Entered Garrison 2570 | -8/Garrison | Triggered checkpoint 2652 | -8/Garrison | Lost 5 parts (2p2u1w) 2661 | -8/Garrison | Spotted B-75 Beast 2700 | -8/Garrison | Lost 5 parts (3n2w) 2716 | -8/Garrison | Triggered checkpoint 2733 | -8/Garrison | Core integrity fell below 50% 2739 | -8/Garrison | Core integrity fell below 20% 2740 | -8/Garrison | Destroyed by B-75 Beast with Magnetic Acceleration Cannon Last Messages --------------- 02661_ Destroyed Imp. Treads. 02666_ Imp. Treads destroyed. 02669_ The unstable cave ceiling collapses. 02669_ Mni. Grenade Launcher destroyed. 02695_ Acquired 2 matter. 02710_ Imp. Ion Engine destroyed. 02715_ Lgt. Nuclear Core destroyed. 02716_ Beams of light sweep through the air. An alarm sounds. 02719_ Slug penetrates Wall. 02721_ Slug penetrates S-10 Pest. 02725_ S-10 Pest suffers critical hit (Destroy). 02725_ S-10 Pest destroyed. 02726_ Gauss Rifle destroyed. 02727_ Slammed into G-47 Trooper. 02732_ Lgt. Treads destroyed. 02734_ Imp. Treads destroyed. 02735_ Slammed into Y-45 Defender. 02735_ Y-45 Defender destroyed. 02737_ Slammed into Y-45 Defender. Map ----- +----------------------------------------------------+ | ????????????????????????????????????????? | | ## #?????????????????????????????????????????? | | ## ###########???????????????????????????????? | | #??????????????????????????????? | | #??????????????????????????????? | | ??????????????????????????????? | | ### ####?# #??????????????????????????????? | | ## #?# #??????????????????????????????? | | ## ##?# #??????????????????????????????? | | ## # ### #??????????????????????????????? | | # # #??????????????????????????????? | | ## # # #??????????????????????????????? | | ### # ++# #??????????????????????????????? | | =%= + #??????????????????????????????? | | %* + #??????????????????????????????? | | ### ## ####" #??????????????????????????????? | | ??#### ####??# #??????????????????????????????? | | ??# #??# #??????????????????????????????? | | ??# #??# #??????????????????????????????? | | ?## " #### #??????????????????????????????? | | ?#"" """ / #??????????????????????????????? | | ?#" " #### #??????????????????????????????? | | ?#" #??# #??????????????????????????????? | | ?#" " #??# #######################????????? | | ?#"""""####??# BBs %%g % #????????? | | ?#####"#?????# BB !@Y #????????? | | ?????#"#?????# %s s #????????? | | ?????###?????# #######+###### #### #????????? | | ?????????????# #????????????# #???????????????? | | ?????????????# #????????????#* #???????????????? | | ?????????????# #????????????#%[#???????????????? | | ?????????????# "???????????? = #???????????????? | | ?????????????# "???????????? #???????????????? | | ?????????????# "???????????? #???????????????? | | ?????????????# "???????????? #???????????????? | | ?????????????# #???????????## #???????????????? | | ?????????????# ?????????????# #???????????????? | | ?????????????# ?????????????# #???????????????? | | ?????????????# ?????????????# #???????????????? | | ????????????? ?????????????? #???????????????? | | ?????????????# ?????????????? #???????????????? | | ??????????????#???????????????###???????????????? | | ????????????????????????????????????????????????? | | ????????????????????????????????????????????????? | | ????????????????????????????????????????????????? | | ????????????????????????????????????????????????? | | ????????????????????????????????????????????????? | | ????????????????????????????????????????????????? | | ????????????????????????????????????????????????? | | | +----------------------------------------------------+ Best States ------------- Heat Dissipation 31 Energy Generation 21 Energy Capacity 445 Matter Stores 300 Matter Capacity 300 Sight Range 20 Terrain Scan Density 10 ECM Strength 1 Evasion (%) 55 Targeting Accuracy 11 Recoil Reduction 3 Item Schematics ----------------- None Robot Schematics ------------------ None Fabricated ------------ Nothing Alien Tech Used ----------------- None Achievements -------------- Everything Is Under Control Challenges ------------ None Game ------ Seed GuidanceCoordinationShifter Manual? 0 Play Time 00:45:37 Cumulative 6.1 hours Start 2024.05.15 @ 01:32:07 End 2024.05.20 @ 22:13:48 Sessions 4 Manual Loads 0 Difficulty Rogue Special Mode None Game No. 8 Rogue 8 Adventurer 0 Explorer 0 Win Type - Total 0 Types 0/0/0/0/0/0/0/0/0 Lore% 4 Gallery% 13 Achievement% 10 Wizard Run 0 Options --------- Layout 2 ASCII 0 Keyboard 0 Movement Numpad Keybinds 0 Fullscreen 1 Font 24/Smallcaps Map View 50x44 Zoom Use 0% Tactical HUD 1 Map Filters NONE Filters NONE Steam 1 RUN: cee1f02a-2b97-413b-87cb-207b89151964